bitfinex/quotes_SOLUSD_20250728
["timestamp","ask_amount","ask_price","bid_price","bid_amount"]
[1753683739466,3.8561907,193.87,193.86,26.0]
[1753683739669,3.8561907,193.87,193.86,31.73090621]
[1753683740478,3.8561907,193.87,193.86,26.0]
[1753683740781,0.03,193.89,193.86,75.75926791]
[1753683740974,0.03,193.89,193.88,5.73090621]
[1753683741460,0.03,193.89,193.88,6.40090621]
[1753683742664,0.03,193.89,193.88,11.55873579]
[1753683742861,0.03,193.89,193.88,126.24044911]
[1753683744784,0.03,193.93,193.92,43.06900711]
[1753683744956,0.03,193.95,193.93,17.06900711]
[1753683745269,0.03,193.95,193.94,26.51562338]
[1753683745575,0.03,193.95,193.94,27.18562338]
[1753683746183,0.03,193.95,193.94,32.34185726]
[1753683746766,0.03,193.97,193.96,3.2432]
[1753683747075,0.69,194.04,193.99,26.0]
[1753683747076,3.84648965,194.03,193.99,26.0]
[1753683747395,0.69,194.04,194.02,5.73090621]
[1753683747572,0.69,194.04,194.03,5.73090621]
[1753683747759,4.53295354,194.04,194.03,5.73090621]
[1753683749291,0.69,194.04,194.03,5.73090621]
[1753683749666,0.69,194.06,194.03,5.73090621]
[1753683749869,0.31802721,194.07,194.05,5.73090621]
[1753683750186,0.31802721,194.07,194.0,48.96544607]
[1753683750187,4.15314227,194.07,194.06,5.73090621]
[1753683750566,4.84314227,194.07,194.06,5.73090621]
[1753683750758,9.99592219,194.07,194.06,9.18296149]
[1753683751889,4.52511506,194.07,194.06,9.18296149]
[1753683752184,4.52511506,194.07,194.01,0.51543734]
[1753683752185,9.67789498,194.07,194.05,9.18296149]
[1753683752381,0.69,194.06,194.03,26.0]
[1753683752578,0.69,194.07,194.05,9.18296149]
[1753683752889,0.69,194.07,194.06,9.18296149]
[1753683756111,5.84277992,194.07,194.04,26.0]
[1753683756269,5.84330236,194.06,194.04,9.18296149]
[1753683756469,0.69,194.05,194.04,9.18296149]
[1753683756968,1.00802721,194.08,194.04,9.18296149]
[1753683757184,0.2,194.09,194.04,9.18296149]
[1753683757185,0.2,194.09,194.07,9.18296149]
[1753683757383,0.89,194.09,194.08,9.18296149]
[1753683757573,4.71101737,194.09,194.08,9.18296149]
[1753683757964,9.8632743,194.09,194.08,9.18296149]
[1753683758377,4.71101737,194.09,194.08,9.18296149]
[1753683758805,4.02101737,194.09,194.08,9.18296149]
[1753683758973,0.89,194.09,194.08,9.18296149]
[1753683759178,4.71101737,194.09,194.08,9.18296149]
[1753683759772,4.02101737,194.09,194.08,9.18296149]
[1753683759973,0.2,194.09,194.08,9.18296149]
[1753683760504,6.36036793,194.09,194.06,26.0]
[1753683760683,5.67036793,194.09,194.07,9.18296149]
[1753683760890,0.69,194.08,194.07,9.18296149]
[1753683762513,5.35234072,194.09,194.07,9.18296149]
[1753683762809,6.04234072,194.09,194.08,9.18296149]
[1753683767395,6.04234072,194.09,194.03,26.67]
[1753683767606,6.04234072,194.09,194.07,9.18296149]
[1753683769191,5.35234072,194.09,194.08,9.18296149]
[1753683769398,0.86,194.09,194.04,0.7]
[1753683769714,0.86,194.09,194.08,9.18296149]
[1753683770417,5.35224895,194.09,194.08,0.7]
[1753683770711,5.35224895,194.09,194.08,9.18296149]
[1753683770889,5.35224895,194.09,194.08,5.73802931]
[1753683771483,0.2,194.09,194.08,5.73802931]
[1753683772403,5.35224895,194.09,194.08,5.73802931]
[1753683772598,5.35224895,194.09,194.06,26.0]
[1753683772916,0.97802721,194.08,194.04,5.73802931]
[1753683773110,0.31802721,194.08,194.04,5.73802931]
[1753683773281,5.15304544,194.06,194.03,5.73802931]
[1753683773487,5.81304544,194.06,194.03,5.73802931]
[1753683773688,0.66,194.05,194.02,5.73802931]
[1753683773887,0.66,194.04,194.0,5.73802931]
[1753683774084,0.66,194.03,194.0,5.73802931]
[1753683774904,0.66,194.03,194.01,5.73802931]
[1753683775303,5.15410782,194.02,194.0,5.73802931]
[1753683775503,0.66,194.01,193.99,5.73802931]
[1753683775702,0.66,194.0,193.97,5.79802931]
[1753683777423,5.81490489,193.99,193.97,5.79802931]
[1753683778222,0.97802721,193.98,193.97,0.06]
[1753683779196,6.71605652,193.98,193.97,0.06]
[1753683779398,11.87122715,193.98,193.97,0.06]
[1753683780111,15.70232937,193.98,193.97,0.06]
[1753683780521,43.95319784,193.98,193.97,0.06]
[1753683780708,43.27319784,193.98,193.97,0.06]
[1753683781617,43.91319784,193.98,193.97,0.06]
[1753683784235,53.48830007,193.98,193.97,0.06]
[1753683784434,66.37622666,193.98,193.93,0.06]
[1753683784632,6.02235245,193.94,193.93,0.06]
[1753683784933,47.59942537,193.94,193.93,0.06]
[1753683785134,48.25942537,193.94,193.93,0.06]
[1753683785728,9.6533068,193.94,193.93,0.06]
[1753683785938,46.7133068,193.94,193.93,0.06]
[1753683786525,3.83707292,193.94,193.93,0.06]
[1753683786842,37.72,193.94,193.93,5.79802931]
[1753683787030,43.19426109,193.94,193.93,0.06]
[1753683787821,37.72,193.94,193.93,5.79802931]
[1753683788406,37.68,193.94,193.93,6.49802931]
[1753683788606,5.15520506,193.98,193.93,6.49802931]
[1753683788811,37.68,193.97,193.96,5.73802931]
[1753683790322,8.98522931,194.02,193.96,6.43802931]
[1753683790323,5.81410782,194.02,193.96,6.43802931]
[1753683790524,37.97802721,194.01,193.98,5.73802931]
[1753683791036,38.63802721,194.01,193.98,5.73802931]
[1753683791239,0.31802721,194.01,194.0,5.73802931]
[1753683791531,37.64,194.01,194.0,5.73802931]
[1753683792333,37.64,194.01,193.99,5.73802931]
[1753683793241,5.15357658,194.04,194.0,5.73802931]
[1753683793545,38.28,194.03,194.01,5.73802931]
[1753683793841,6.13229789,194.02,193.99,5.73802931]
[1753683794033,6.39802931,194.01,193.95,5.73802931]
[1753683794211,44.29605652,194.0,193.94,31.73802931]
[1753683794413,0.66,193.99,193.93,0.06]
[1753683794623,0.31802721,193.98,193.95,5.73802931]
[1753683794812,37.58,193.97,193.96,5.73802931]
[1753683795841,5.1557022,193.96,193.95,5.73802931]
[1753683796026,5.1557022,193.96,193.94,5.73802931]
[1753683796228,6.13372941,193.96,193.94,5.73802931]
[1753683796739,5.47372941,193.96,193.94,5.73802931]
[1753683797250,0.66,193.95,193.93,0.06]
[1753683797411,37.54,193.94,193.93,0.06]
[1753683798347,49.4622904,193.94,193.93,0.06]
[1753683798920,0.28432314,193.93,193.89,0.06]
[1753683799135,0.31802721,193.92,193.89,0.06]
[1753683799353,38.23,193.91,193.89,0.06]
[1753683799520,0.31802721,193.9,193.89,0.06]
[1753683799838,37.52,193.91,193.89,6.45802931]
[1753683800139,42.67703161,193.91,193.89,0.06]
[1753683800312,43.38703161,193.91,193.89,0.06]
[1753683800511,1.02802721,193.9,193.89,0.06]
[1753683802149,23.91298397,193.89,193.86,0.06]
[1753683802446,9.20254449,193.87,193.86,0.06]
[1753683803125,9.91254449,193.87,193.86,0.06]
[1753683803935,0.31802721,193.88,193.86,0.06]
[1753683804127,37.58,193.87,193.86,0.06]
[1753683804326,37.58,193.87,193.86,9.26254449]
[1753683806245,0.31802721,193.9,193.86,9.26254449]
[1753683806428,0.31802721,193.95,193.87,0.66]
[1753683806634,0.31802721,193.93,193.87,0.66]
[1753683806828,1.02802721,193.97,193.92,9.20254449]
[1753683807149,37.88,193.96,193.95,9.20254449]
[1753683807361,5.15517063,193.98,193.95,9.20254449]
[1753683807538,37.88,193.97,193.96,9.20254449]
[1753683808143,37.88,193.97,193.95,9.20254449]
[1753683808717,37.88,193.97,193.96,9.20254449]
[1753683809169,37.88,193.97,193.96,9.86254449]
[1753683809443,0.03,193.98,193.96,9.86254449]
[1753683809632,0.03,193.98,193.97,9.86254449]
[1753683810251,0.03,193.98,193.97,9.20254449]
[1753683811548,0.03,193.98,193.94,0.66]
[1753683811731,0.03,193.98,193.96,9.20254449]
[1753683811732,0.74,193.98,193.96,9.20254449]
[1753683812340,5.89518597,193.98,193.92,31.81674142]
[1753683812536,18.07311256,193.98,193.89,0.51575635]
[1753683812750,10.2305717,193.97,193.89,0.66]
[1753683812939,37.82,193.96,193.92,9.20254449]
[1753683813137,0.31802721,193.95,193.92,9.20254449]
[1753683814150,0.31802721,193.95,193.93,9.20254449]
[1753683814327,5.4740592,193.95,193.93,9.20254449]
[1753683814929,5.4740592,193.95,193.92,9.20254449]
[1753683815331,6.1840592,193.95,193.92,9.20254449]
[1753683817055,0.71,193.94,193.91,9.20254449]
[1753683817239,37.78,193.93,193.9,9.20254449]
[1753683817952,43.25478785,193.93,193.9,9.20254449]
[1753683818132,37.78,193.93,193.92,9.20254449]
[1753683818332,37.78,193.93,193.92,9.86254449]
[1753683819057,37.78,193.93,193.92,9.20254449]
[1753683819244,37.78,193.93,193.9,26.0]
[1753683819447,42.93650709,193.93,193.9,26.0]
[1753683819749,43.64650709,193.93,193.9,35.20254449]
[1753683819942,43.64650709,193.93,193.91,9.20254449]
[1753683820552,42.93650709,193.93,193.91,9.20254449]
[1753683822533,12.91792659,193.98,193.92,9.86254449]
[1753683822534,0.03,193.98,193.92,9.86254449]
[1753683822730,0.03,193.98,193.97,9.20254449]
[1753683822933,37.69,193.98,193.97,9.20254449]
[1753683824561,43.55517063,193.98,193.94,26.0]
[1753683824857,43.55517063,193.98,193.97,9.20254449]
[1753683825557,42.84517063,193.98,193.97,9.20254449]
[1753683826261,43.55517063,193.98,193.92,0.51567656]
[1753683826558,1.02802721,193.97,193.94,9.20254449]
[1753683826763,38.31,193.96,193.93,9.20254449]
[1753683826955,0.71,193.95,193.93,9.20254449]
[1753683827153,37.58,193.94,193.93,9.20254449]
[1753683827535,42.73623388,193.94,193.93,9.20254449]
[1753683827935,42.73623388,193.94,193.92,9.20254449]
[1753683828131,0.97802721,193.93,193.88,3.272]
[1753683828354,37.56,193.92,193.88,3.272]
[1753683828556,37.56,193.92,193.89,9.20254449]
[1753683829357,37.56,193.92,193.9,9.20254449]
[1753683829674,0.97802721,193.93,193.91,9.20254449]
[1753683829675,0.31802721,193.93,193.91,9.20254449]
[1753683829841,0.31802721,193.96,193.92,9.20254449]
[1753683830038,37.54,193.95,193.94,9.20254449]
[1753683830243,37.54,193.95,193.93,9.20254449]
[1753683830450,0.66,193.94,193.92,9.20254449]
[1753683830660,37.54,193.95,193.93,9.20254449]
[1753683831043,38.2,193.95,193.89,0.71]
[1753683831243,38.2,193.95,193.9,9.20254449]
[1753683831449,10.1805717,193.94,193.88,26.0]
[1753683831675,9.86254449,193.93,193.88,26.0]
[1753683831910,24.68375771,193.96,193.86,0.06]
[1753683831911,9.20254449,193.9,193.86,0.06]
[1753683832061,37.83802721,193.89,193.86,0.06]
[1753683832392,38.49802721,193.89,193.86,0.06]
[1753683832559,0.66,193.88,193.86,0.06]
[1753683837079,5.81788203,193.88,193.86,0.06]
[1753683837277,0.66,193.87,193.86,0.06]
[1753683837868,5.15788203,193.88,193.86,0.06]
[1753683838284,5.81788203,193.88,193.86,0.06]
[1753683839071,0.66,193.87,193.86,0.06]
[1753683839390,5.15788203,193.88,193.86,0.06]
[1753683839603,37.44,193.87,193.86,9.26254449]
[1753683840178,37.44,193.87,193.86,0.06]
[1753683840587,38.1,193.87,193.86,0.06]
[1753683840895,49.33025548,193.87,193.86,0.06]
[1753683842271,11.89025548,193.87,193.85,0.06]
[1753683842471,42.87612284,193.87,193.85,0.06]
[1753683842878,37.4,193.87,193.85,9.26263103]
[1753683843080,37.4,193.87,193.86,9.20263103]
[1753683843309,37.4,193.89,193.86,9.91263103]
[1753683843521,37.4,193.94,193.88,9.20263103]
[1753683843808,37.4,193.94,193.93,9.20263103]
[1753683844003,19.49206177,193.99,193.93,9.91263103]
[1753683844004,0.66,193.99,193.93,9.91263103]
[1753683844193,41.24383788,193.98,193.96,9.20263103]
[1753683844507,0.03,194.02,193.97,9.20263103]
[1753683844689,0.03,194.02,193.99,9.20263103]
[1753683844690,37.42,194.01,193.99,9.20263103]
[1753683845182,38.08,194.01,193.98,9.20263103]
[1753683845584,43.23445133,194.01,193.99,9.20263103]
[1753683845984,0.66,194.0,193.97,9.20263103]
[1753683846200,0.66,193.99,193.96,9.20263103]
[1753683846410,38.06,193.98,193.94,26.0]
[1753683846573,0.66,193.97,193.92,26.0]
[1753683846905,38.06,193.96,193.92,35.20263103]
[1753683847279,38.06,193.96,193.94,9.20263103]
[1753683847280,37.4,193.96,193.94,9.20263103]
[1753683847483,37.4,193.96,193.95,9.20263103]
[1753683848910,42.5557022,193.96,193.95,9.20263103]
[1753683849609,42.5557022,193.96,193.94,9.20263103]
[1753683850212,43.2157022,193.96,193.94,9.20263103]
[1753683851189,42.5557022,193.96,193.94,9.20263103]
[1753683853019,43.2157022,193.96,193.95,9.20263103]
[1753683853991,42.5557022,193.96,193.95,9.20263103]
[1753683854916,42.5857022,193.96,193.95,9.20263103]
[1753683856093,0.03,193.96,193.95,9.91263103]
[1753683856416,0.03,193.96,193.95,9.20263103]
[1753683857588,0.03,193.96,193.95,9.91263103]
[1753683858486,0.03,193.96,193.95,9.20263103]
[1753683861395,0.03,193.96,193.93,0.69]
[1753683861595,0.03,193.96,193.95,9.20263103]
[1753683861991,0.03,193.96,193.95,10.40822783]
[1753683862209,0.03,193.96,193.95,53.47723494]
[1753683862410,0.03,193.96,193.95,27.47723494]
[1753683862806,0.03,193.96,193.95,24.01622436]
[1753683863010,0.03,193.96,193.95,33.3489229]
[1753683863618,0.03,193.96,193.95,70.5489229]
[1753683866126,0.03,193.96,193.95,158.8489229]
[1753683866423,0.03,193.96,193.95,158.2933261]
[1753683868513,0.03,193.96,193.95,121.1333261]
[1753683868704,0.03,193.96,193.95,120.4433261]
[1753683868904,0.03,193.96,193.95,157.5633261]
[1753683869307,0.03,193.96,193.95,158.2533261]
[1753683872108,0.03,193.96,193.95,157.5633261]
[1753683872904,0.03,193.96,193.95,157.5033261]
[1753683873316,0.03,193.96,193.95,120.4433261]
[1753683873515,0.03,193.96,193.95,157.5033261]
[1753683874341,1e-08,194.06,193.99,16.78468397]
[1753683874531,0.03,194.11,194.1,27.06900711]
[1753683874705,0.03,194.15,194.1,27.06900711]
[1753683874706,0.03,194.15,194.12,43.06900711]
[1753683874906,0.03,194.15,194.12,60.20237161]
[1753683875133,0.03,194.15,194.12,72.00900811]
[1753683876042,0.03,194.15,194.13,33.68722634]
[1753683876218,0.03,194.15,194.14,6.25671265]
[1753683876540,0.03,194.15,194.14,22.87493188]
[1753683876850,0.03,194.15,194.14,31.45299551]
[1753683877024,0.03,194.15,194.14,33.98521417]
[1753683877343,0.2,194.16,194.15,16.61821923]
[1753683877533,0.2,194.16,194.15,34.95574337]
[1753683877732,0.87,194.16,194.15,25.7869813]
[1753683878042,0.87,194.16,194.15,9.16876207]
[1753683878913,0.2,194.16,194.15,14.31941877]
[1753683879111,0.2,194.17,194.15,14.31941877]
[1753683879112,0.2,194.17,194.15,23.48818084]
[1753683879332,0.2,194.17,194.16,18.33752414]
[1753683880339,0.87,194.17,194.16,18.33752414]
[1753683881237,0.87,194.17,194.16,23.48791556]
[1753683882348,0.2,194.17,194.16,23.48791556]
[1753683888216,0.89,194.17,194.16,14.31915349]
[1753683888448,0.89,194.17,194.16,23.48791556]
[1753683888741,0.2,194.17,194.16,23.48791556]
[1753683889265,0.89,194.17,194.16,23.48791556]
[1753683890323,0.2,194.17,194.16,23.48791556]
[1753683890957,0.89,194.17,194.16,23.48791556]
[1753683892056,0.89,194.17,194.16,5.15039142]
[1753683892229,0.89,194.17,194.16,23.48791556]
[1753683892731,0.2,194.17,194.16,23.48791556]
[1753683893144,0.89,194.17,194.16,23.48791556]
[1753683893523,0.2,194.17,194.16,23.48791556]
[1753683895058,0.89,194.17,194.16,23.48791556]
[1753683895631,0.2,194.17,194.16,23.48791556]
[1753683896460,0.89,194.17,194.16,23.48791556]
[1753683896963,0.89,194.17,194.16,14.31915349]
[1753683898840,0.89,194.17,194.16,10.88104923]
[1753683899369,0.89,194.17,194.16,5.73065781]
[1753683899763,37.67,194.17,194.16,5.73065781]
[1753683900069,37.67,194.17,194.16,10.88104923]
[1753683900238,37.67,194.17,194.15,5.73065781]
[1753683900439,37.67,194.17,194.12,0.06]
[1753683900440,6.42065781,194.16,194.12,0.06]
[1753683900660,5.73065781,194.13,194.01,18.04029475]
[1753683900865,0.69,194.12,194.08,5.73065781]
[1753683901043,36.82,194.11,194.01,25.94304293]
[1753683901240,0.69,194.1,194.07,5.73065781]
[1753683901544,0.69,194.1,194.09,5.73065781]
[1753683901762,37.51,194.1,194.09,5.73065781]
[1753683902052,37.51,194.1,194.08,5.73065781]
[1753683902261,0.69,194.09,194.08,5.73065781]
[1753683903046,37.51,194.09,194.08,5.73065781]
[1753683907667,37.51,194.09,194.03,101.853944]
[1753683907668,43.24065781,194.09,194.03,5.73065781]
[1753683907875,6.42065781,194.08,194.02,5.73065781]
[1753683908052,0.69,194.07,194.03,5.73065781]
[1753683908373,0.69,194.07,194.04,5.73065781]
[1753683909496,0.69,194.07,194.03,31.73065781]
[1753683909977,11.57352638,194.07,194.03,26.0]
[1753683910151,0.69,194.06,194.05,26.0]
[1753683911765,0.69,194.06,194.02,5.73065781]
[1753683911766,0.69,194.06,194.0,5.2146238]
[1753683911972,11.57370893,194.06,194.0,5.79065781]
[1753683912276,37.47,194.05,194.02,5.73065781]
[1753683912453,36.78,194.05,194.02,5.73065781]
[1753683912653,0.69,194.04,194.02,5.73065781]
[1753683914083,0.69,194.03,194.02,26.0]
[1753683920250,0.69,194.03,194.02,26.06]
[1753683923785,36.78,194.05,194.02,26.06]
[1753683924085,0.71,194.04,194.02,26.06]
[1753683924872,0.71,194.03,194.02,26.06]
[1753683926776,37.47,194.03,194.02,26.06]
[1753683929859,42.62384218,194.03,194.02,0.06]
[1753683930163,48.35449999,194.03,194.02,0.06]
[1753683930560,0.2,194.18,194.02,7.41515781]
[1753683930756,6.64065781,194.18,194.11,5.73065781]
[1753683931073,37.31,194.12,194.11,26.0]
[1753683931391,0.03,194.12,194.11,32.39065781]
[1753683931563,37.31,194.12,194.11,32.39065781]
[1753683932487,37.31,194.12,194.11,37.5423759]
[1753683933762,0.03,194.12,194.11,37.5423759]
[1753683933980,37.25,194.12,194.11,37.5423759]
[1753683935977,37.25,194.12,194.11,36.8823759]
[1753683937017,37.23,194.12,194.11,36.8823759]
[1753683937177,37.23,194.12,194.11,37.5423759]
[1753683937967,37.23,194.12,194.11,32.39065781]
[1753683938207,37.23,194.12,194.11,26.66]
[1753683938500,37.23,194.12,194.11,31.73065781]
[1753683938706,37.23,194.12,194.11,36.8823759]
[1753683940095,37.23,194.12,194.11,31.73065781]
[1753683943536,37.23,194.12,194.11,31.79065781]
[1753683943845,37.15,194.12,194.11,31.79065781]
[1753683947709,43.0114527,194.12,194.11,0.06]
[1753683947936,37.78,194.12,194.11,5.79065781]
[1753683948404,0.74,194.12,194.11,5.79065781]
[1753683948605,37.78,194.12,194.11,5.79065781]
[1753683949135,42.9314527,194.12,194.11,0.06]
[1753683949930,37.78,194.12,194.11,0.06]
[1753683951712,0.74,194.12,194.11,0.06]
[1753683951913,37.72,194.12,194.11,0.06]
[1753683952231,0.74,194.12,194.11,0.06]
[1753683952410,37.72,194.12,194.11,0.06]
[1753683952834,0.74,194.12,194.11,0.06]
[1753683953136,37.72,194.12,194.11,0.06]
[1753683954833,37.72,194.12,194.11,26.06]
[1753683955811,37.72,194.12,194.11,0.06]
[1753683956011,43.45065781,194.12,194.11,0.06]
[1753683956336,37.8,194.12,194.11,0.06]
[1753683957440,42.9514527,194.12,194.11,0.06]
[1753683958546,37.78,194.12,194.11,0.06]
[1753683959129,42.9314527,194.12,194.11,0.06]
[1753683960812,42.8914527,194.12,194.11,0.06]
[1753683965050,0.74,194.12,194.11,0.06]
[1753683965234,43.43065781,194.12,194.11,0.06]
[1753683965943,37.7,194.12,194.11,0.06]
[1753683966129,48.58211051,194.12,194.11,0.06]
[1753683967535,48.56211051,194.12,194.11,0.06]
[1753683967738,11.62211051,194.12,194.11,0.06]
[1753683967942,65.32679448,194.12,194.11,0.06]
[1753683968127,65.61111762,194.12,194.11,1e-08]
[1753683968443,0.28432314,194.1,194.07,0.06]
[1753683968643,5.73065781,194.08,194.07,0.06]
[1753683969032,6.41065781,194.08,194.07,0.06]
[1753683969420,11.56317223,194.08,194.07,0.06]
[1753683971421,5.15251442,194.08,194.07,0.06]
[1753683971746,42.09251442,194.08,194.07,0.06]
[1753683972132,5.15225086,194.09,194.07,0.06]
[1753683972351,36.94,194.08,194.07,0.06]
[1753683972827,5.83225086,194.09,194.07,0.06]
[1753683973027,36.94,194.08,194.07,0.06]
[1753683973439,42.77251442,194.08,194.07,0.06]
[1753683974441,42.09251442,194.08,194.07,0.06]
[1753683976739,5.76065781,194.12,194.07,6.49065781]
[1753683976937,42.05171809,194.11,194.08,0.7]
[1753683977167,36.88,194.1,194.08,0.7]
[1753683978446,5.1814527,194.12,194.08,6.43065781]
[1753683978639,36.88,194.11,194.08,6.43065781]
[1753683979475,36.88,194.11,194.08,5.73065781]
[1753683979767,37.56,194.11,194.08,5.73065781]
[1753683980766,37.56,194.11,194.07,0.06]
[1753683980975,42.71182596,194.11,194.08,5.73065781]
[1753683981173,0.68,194.11,194.08,5.73065781]
[1753683981378,36.84,194.1,194.08,5.73065781]
[1753683982366,36.82,194.09,194.08,5.73065781]
[1753683985880,36.82,194.09,194.07,0.06]
[1753683986053,36.82,194.09,194.08,5.73065781]
[1753683987460,36.82,194.09,194.08,5.79065781]
[1753683988981,36.82,194.09,194.08,0.06]
[1753683989290,36.8,194.09,194.08,0.06]
[1753683989881,37.48,194.09,194.08,0.06]
[1753683990886,36.8,194.09,194.08,0.06]
[1753683991085,36.8,194.09,194.08,5.79065781]
[1753683993370,37.48,194.09,194.08,0.06]
[1753683993577,0.68,194.09,194.08,0.06]
[1753683993759,37.48,194.09,194.08,0.06]
[1753683995586,36.8,194.09,194.08,0.06]
[1753683996478,37.48,194.09,194.08,0.06]
[1753684000088,42.63224895,194.09,194.08,0.06]
[1753684000272,0.68,194.09,194.08,0.06]
[1753684000477,37.48,194.09,194.08,0.06]
[1753684000968,5.83224895,194.09,194.08,0.06]
[1753684001285,42.63224895,194.09,194.08,0.06]
[1753684002065,36.8,194.09,194.08,0.06]
[1753684002262,5.8317963,194.11,194.08,3.73298232]
[1753684002463,36.8,194.09,194.08,3.73298232]
[1753684004794,37.48,194.09,194.08,0.06]
[1753684006970,42.63224895,194.09,194.08,0.06]
[1753684011673,5.83224895,194.09,194.08,0.06]
[1753684011894,42.63224895,194.09,194.08,0.06]
[1753684013173,0.03,194.12,194.08,0.74]
[1753684013485,0.03,194.12,194.11,5.73866768]
[1753684013791,36.83,194.12,194.11,5.73866768]
[1753684014205,0.03,194.12,194.11,5.73866768]
[1753684014385,36.83,194.12,194.11,6.41866768]
[1753684014580,36.81,194.12,194.11,6.41866768]
[1753684014892,36.81,194.12,194.11,5.73866768]
[1753684015281,36.81,194.12,194.09,0.68]
[1753684015483,36.81,194.12,194.11,5.73866768]
[1753684015884,36.81,194.12,194.11,6.41866768]
[1753684016623,36.81,194.12,194.11,5.73866768]
[1753684017190,36.81,194.12,194.1,0.68]
[1753684017398,0.03,194.12,194.11,6.41866768]
[1753684017604,36.81,194.12,194.11,6.41866768]
[1753684019105,0.03,194.12,194.11,5.73866768]
[1753684019312,36.81,194.12,194.11,5.73866768]
[1753684019480,36.81,194.12,194.11,6.41866768]
[1753684019680,36.81,194.12,194.11,26.68]
[1753684019984,36.81,194.12,194.11,32.41866768]
[1753684020594,36.81,194.12,194.11,31.73866768]
[1753684021717,36.81,194.12,194.11,26.0]
[1753684022014,36.81,194.12,194.11,31.73866768]
[1753684022404,37.47,194.12,194.11,5.73866768]
[1753684023312,42.6214527,194.12,194.08,0.06]
[1753684023606,0.66,194.11,194.08,0.06]
[1753684023990,5.15198351,194.1,194.08,0.06]
[1753684024204,36.78,194.09,194.08,26.06]
[1753684024399,37.44,194.09,194.08,26.06]
[1753684024602,37.44,194.09,194.08,0.06]
[1753684026401,42.59224895,194.09,194.08,0.06]
[1753684032509,36.78,194.09,194.08,0.06]
[1753684032901,0.03,194.12,194.09,26.0]
[1753684033209,0.03,194.12,194.11,3.67277946]
[1753684033395,0.03,194.12,194.1,0.68]
[1753684033396,42.6014527,194.12,194.1,3.67277946]
[1753684033596,5.81184744,194.11,194.08,0.06]
[1753684033903,36.76,194.1,194.08,0.06]
[1753684034421,36.76,194.1,194.09,26.0]
[1753684035414,36.76,194.1,194.09,5.73827316]
[1753684036031,42.57205603,194.1,194.08,0.06]
[1753684036321,0.66,194.09,194.08,0.06]
[1753684038124,5.81224895,194.09,194.08,0.06]
[1753684041829,5.15171809,194.11,194.08,6.47827316]
[1753684042036,25.18063595,194.09,194.08,5.79827316]
[1753684044213,30.3328849,194.09,194.08,5.79827316]
[1753684045723,30.3328849,194.09,194.08,0.06]
[1753684046835,31.0028849,194.09,194.08,0.06]
[1753684047627,5.82224895,194.09,194.08,0.06]
[1753684047835,36.76,194.09,194.08,0.06]
[1753684049339,36.76,194.09,194.08,5.79827316]
[1753684049644,36.76,194.09,194.08,26.06]
[1753684049827,36.76,194.09,194.08,0.06]
[1753684050929,42.58224895,194.09,194.08,0.06]
[1753684062349,0.28432314,194.07,194.04,0.06]
[1753684062645,0.28432314,194.07,194.03,0.06]
[1753684062646,0.28432314,194.04,194.03,0.06]
[1753684062848,44.54988479,194.04,194.03,0.06]
[1753684063025,50.37346137,194.04,194.03,0.06]
[1753684063226,67.61812414,194.04,194.03,0.06]
[1753684064727,63.9445249,194.04,194.03,0.06]
[1753684064927,69.69035045,194.04,194.03,0.06]
[1753684065143,65.83838804,194.04,194.03,0.06]
[1753684065335,11.56940213,194.04,194.03,0.06]
[1753684065540,52.15562338,194.04,194.03,0.06]
[1753684066446,15.41562338,194.04,194.03,0.06]
[1753684066643,47.63940213,194.04,194.03,0.06]